bitfinex/quotes_ETHUSD_20240710
["timestamp","ask_amount","ask_price","bid_price","bid_amount"]
[1720653186615,2.6379536,3108.2,3107.8,0.836]
[1720653186816,2.6379536,3108.2,3107.9,1.12039801]
[1720653187047,2.6379536,3108.2,3107.8,0.836]
[1720653187244,2.6379536,3108.2,3107.9,1.12039817]
[1720653187450,2.6379536,3108.2,3107.8,0.836]
[1720653187735,2.6379536,3108.2,3107.9,1.12039818]
[1720653188048,2.6379536,3108.2,3107.8,0.836]
[1720653188246,2.6379536,3108.2,3107.9,1.12039804]
[1720653188419,2.6379536,3108.2,3107.8,0.836]
[1720653188620,2.6379536,3108.2,3107.9,1.12039241]
[1720653188819,2.6379536,3108.2,3107.8,0.836]
[1720653189033,2.6379536,3108.2,3107.9,1.12039386]
[1720653189255,2.6379536,3108.2,3107.8,0.836]
[1720653189470,2.6379536,3108.2,3107.9,1.12039252]
[1720653189670,2.6379536,3108.2,3107.8,0.836]
[1720653189970,2.6379536,3108.2,3107.9,1.12038748]
[1720653190113,2.6379536,3108.2,3107.8,1.08846512]
[1720653190319,2.6379536,3108.2,3107.9,1.12039126]
[1720653190519,2.6379536,3108.2,3107.8,1.08846512]
[1720653190728,2.6379536,3108.2,3107.9,1.12038984]
[1720653190931,2.6379536,3108.2,3107.8,1.08846512]
[1720653191161,2.6379536,3108.2,3107.9,1.12038984]
[1720653191324,2.6379536,3108.2,3107.8,0.836]
[1720653191729,2.6379536,3108.2,3107.9,1.120403]
[1720653191942,2.6379536,3108.2,3107.8,0.836]
[1720653192266,2.6379536,3108.2,3107.9,1.12040147]
[1720653192434,2.6379536,3108.2,3107.8,0.836]
[1720653192636,2.6379536,3108.2,3107.9,1.12040273]
[1720653192843,2.6379536,3108.2,3107.8,0.836]
[1720653193041,2.6379536,3108.2,3107.9,1.12040237]
[1720653193263,2.6379536,3108.2,3107.8,0.836]
[1720653193469,2.6379536,3108.2,3107.9,1.12040251]
[1720653193636,2.6379536,3108.2,3107.8,0.836]
[1720653193836,2.6379536,3108.2,3107.9,1.12040322]
[1720653194036,2.6379536,3108.2,3107.8,0.836]
[1720653194236,2.6379536,3108.2,3107.9,1.12040322]
[1720653194433,2.6379536,3108.2,3107.8,0.836]
[1720653194632,2.90174896,3108.2,3107.6,0.6754605]
[1720653194838,2.90174896,3108.2,3107.7,1.12044774]
[1720653194839,2.292,3108.1,3107.7,1.12044774]
[1720653195055,2.292,3108.1,3107.5,1.5114605]
[1720653195371,2.292,3108.1,3107.6,2.80124469]
[1720653195667,2.292,3108.1,3107.7,1.12049879]
[1720653195873,2.292,3108.1,3107.5,1.5114605]
[1720653196041,0.02678164,3108.0,3107.5,0.836]
[1720653196238,2.292,3108.1,3107.5,0.836]
[1720653196781,2.292,3108.1,3107.6,1.12053448]
[1720653196944,2.292,3108.1,3107.5,0.836]
[1720653197138,2.292,3108.1,3107.6,2.80130422]
[1720653197353,2.292,3108.1,3107.5,0.836]
[1720653197647,2.292,3108.1,3107.6,2.80126035]
[1720653197836,2.292,3108.1,3107.5,0.836]
[1720653198040,2.292,3108.1,3107.6,1.12052271]
[1720653198261,2.292,3108.1,3107.5,0.836]
[1720653198461,2.292,3108.1,3107.6,1.12050881]
[1720653198667,2.292,3108.1,3107.5,0.836]
[1720653198868,2.292,3108.1,3107.6,1.12052277]
[1720653199174,2.292,3108.1,3107.5,0.836]
[1720653199467,2.292,3108.1,3107.6,2.80125861]
[1720653199671,2.292,3108.1,3107.5,0.836]
[1720653199872,2.292,3108.1,3107.6,1.12050801]
[1720653200064,2.292,3108.1,3107.5,0.836]
[1720653200259,2.292,3108.1,3107.6,1.1205284]
[1720653200595,2.292,3108.1,3107.5,0.836]
[1720653200874,2.292,3108.1,3107.6,1.12052921]
[1720653201178,2.292,3108.1,3107.5,0.836]
[1720653201358,2.292,3108.1,3107.6,1.1205297]
[1720653201551,2.292,3108.1,3107.5,0.836]
[1720653201880,2.292,3108.1,3107.6,2.80126026]
[1720653202106,2.292,3108.1,3107.5,0.836]
[1720653202375,2.292,3108.1,3107.6,2.80124788]
[1720653202574,2.292,3108.1,3107.7,1.12049915]
[1720653202779,2.292,3108.1,3107.5,1.5125288]
[1720653202986,2.292,3108.1,3107.6,2.80124823]
[1720653203155,2.292,3108.1,3107.5,1.5125288]
[1720653203355,2.292,3108.1,3107.6,2.80125141]
[1720653203581,2.292,3108.1,3107.5,0.836]
[1720653203750,2.292,3108.1,3107.6,2.8012641]
[1720653203951,2.292,3108.1,3107.5,0.836]
[1720653204162,2.292,3108.1,3107.6,2.80126453]
[1720653204490,2.292,3108.1,3107.5,1.5125288]
[1720653204682,2.292,3108.1,3107.6,2.80124953]
[1720653204978,2.292,3108.1,3107.5,0.836]
[1720653205279,2.292,3108.1,3107.6,1.12050827]
[1720653205476,2.292,3108.1,3107.5,0.836]
[1720653205847,2.292,3108.1,3107.6,1.12052666]
[1720653206047,2.292,3108.1,3107.5,0.836]
[1720653206249,2.292,3108.1,3107.6,2.80131433]
[1720653206550,2.292,3108.1,3107.5,0.836]
[1720653206748,2.292,3108.1,3107.6,2.80126408]
[1720653206977,2.292,3108.1,3107.5,1.0887322]
[1720653207174,2.292,3108.1,3107.6,2.80126953]
[1720653207378,2.292,3108.1,3107.5,1.0887322]
[1720653207693,2.292,3108.1,3107.6,2.80128481]
[1720653207897,2.292,3108.1,3107.5,1.0887322]
[1720653208597,2.292,3108.1,3107.6,1.12054396]
[1720653208772,2.292,3108.1,3107.5,1.0887322]
[1720653208974,2.292,3108.1,3107.6,1.12053604]
[1720653209189,2.292,3108.1,3107.5,1.0887322]
[1720653209394,2.292,3108.1,3107.6,1.1205333]
[1720653209572,2.292,3108.1,3107.5,1.0887322]
[1720653209778,2.292,3108.1,3107.6,1.12053243]
[1720653209989,2.292,3108.1,3107.5,1.0887322]
[1720653210199,2.292,3108.1,3107.6,1.12053323]
[1720653210414,2.292,3108.1,3107.5,0.836]
[1720653211015,2.292,3108.1,3107.6,1.12054293]
[1720653211171,2.292,3108.1,3107.5,0.836]
[1720653216350,1.17269279,3108.6,3107.2,1.0147932]
[1720653216351,2.362,3107.8,3107.2,0.6765288]
[1720653216629,2.362,3107.6,3106.7,0.836]
[1720653217232,2.2821,3107.4,3106.7,0.836]
[1720653220727,0.02752229,3107.3,3106.7,0.836]
[1720653220928,0.08915363,3107.3,3106.7,0.836]
[1720653221230,2.476,3107.2,3106.5,0.836]
[1720653221431,2.56507768,3107.2,3106.5,0.836]
[1720653223030,2.476,3107.2,3106.5,0.836]
[1720653224440,0.06114265,3107.1,3106.5,0.836]
[1720653229920,0.06114265,3107.1,3106.9,0.836]
[1720653230136,2.4216,3107.4,3106.9,0.836]
[1720653230445,0.06147596,3107.3,3106.9,0.836]
[1720653234650,0.33685501,3107.6,3107.1,0.836]
[1720653234851,0.06146469,3107.2,3107.1,0.836]
[1720653235038,0.33685501,3107.6,3107.1,0.836]
[1720653235232,0.33685501,3107.6,3106.9,0.836]
[1720653235750,0.02338677,3107.5,3106.9,0.836]
[1720653238118,0.02338677,3107.5,3106.9,1.15525]
[1720653238532,0.06161067,3107.4,3106.9,1.15525]
[1720653240693,0.06161067,3107.4,3107.1,0.836]
[1720653246448,0.06161067,3107.4,3107.1,3.1707]
[1720653246830,0.06161067,3107.4,3107.3,0.836]
[1720653247035,0.06161067,3107.4,3107.3,3.49420629]
[1720653249942,0.06161067,3107.4,3107.3,4.61470621]
[1720653250147,0.06161067,3107.4,3107.3,3.49420629]
[1720653250755,0.08485502,3107.4,3107.3,3.49420629]
[1720653251761,0.08485502,3107.4,3107.3,4.61471995]
[1720653253845,0.08485502,3107.4,3107.3,3.49420629]
[1720653254050,0.08485502,3107.4,3107.3,4.61471881]
[1720653254551,0.08485502,3107.4,3107.3,3.49420629]
[1720653254753,0.08485502,3107.4,3107.3,4.61471811]
[1720653257373,0.08485502,3107.4,3107.3,1.15950629]
[1720653257540,0.08485502,3107.4,3107.3,2.2800199]
[1720653258371,0.08485502,3107.4,3107.3,1.15950629]
[1720653258757,0.08485502,3107.4,3107.3,0.836]
[1720653259373,0.08485502,3107.4,3107.0,0.67504003]
[1720653259667,0.08485502,3107.4,3107.0,0.836]
[1720653260971,0.08485502,3107.4,3106.8,0.836]
[1720653261269,0.08485502,3107.4,3106.9,1.12069561]
[1720653261484,0.08485502,3107.4,3106.8,0.836]
[1720653261653,0.08485502,3107.4,3106.9,1.12068709]
[1720653261852,0.08485502,3107.4,3106.8,0.836]
[1720653262041,0.08485502,3107.4,3106.9,1.12069067]
[1720653262237,0.08485502,3107.4,3106.8,0.836]
[1720653262459,0.08485502,3107.4,3107.0,0.836]
[1720653263346,0.08485502,3107.4,3107.2,0.836]
[1720653267265,0.08485502,3107.4,3107.3,1.12055152]
[1720653267461,0.08485502,3107.4,3107.2,1.214714]
[1720653268379,0.08485502,3107.4,3107.3,1.12055361]
[1720653268765,0.08485502,3107.4,3107.2,1.214714]
[1720653269558,0.08485502,3107.4,3107.3,1.12055881]
[1720653271381,0.08485502,3107.4,3107.3,1.6491992]
[1720653273258,0.08485502,3107.4,3107.3,3.33003043]
[1720653273593,0.08485502,3107.4,3107.3,1.12055792]
[1720653273760,0.08485502,3107.4,3107.2,0.836]
[1720653274159,2.34005502,3107.4,3107.2,0.836]
[1720653274354,2.34005502,3107.4,3107.0,0.836]
[1720653275506,2.34005502,3107.4,3107.1,1.12068144]
[1720653275675,2.34005502,3107.4,3107.0,0.836]
[1720653275877,2.34005502,3107.4,3107.1,1.1206821]
[1720653276181,2.34005502,3107.4,3107.0,0.836]
[1720653276381,2.34005502,3107.4,3107.1,1.1206824]
[1720653276584,2.34005502,3107.4,3107.0,0.836]
[1720653276764,2.34005502,3107.4,3107.1,1.12068275]
[1720653276965,2.34005502,3107.4,3107.0,0.836]
[1720653277167,2.34005502,3107.4,3107.1,1.12068212]
[1720653277397,2.34005502,3107.4,3107.0,0.836]
[1720653277563,2.34005502,3107.4,3107.1,1.12068248]
[1720653277778,2.34005502,3107.4,3107.0,0.836]
[1720653278077,2.34005502,3107.4,3107.1,1.12068878]
[1720653278288,2.34005502,3107.4,3107.0,0.836]
[1720653278479,2.34005502,3107.4,3107.1,2.80169871]
[1720653278714,2.34005502,3107.4,3107.0,0.836]
[1720653278911,2.34005502,3107.4,3107.1,1.12069369]
[1720653279193,2.34005502,3107.4,3107.0,0.836]
[1720653279393,2.34005502,3107.4,3107.1,1.12071512]
[1720653279590,2.34005502,3107.4,3107.0,0.836]
[1720653279803,2.34005502,3107.4,3107.1,1.12072019]
[1720653279979,2.34005502,3107.4,3107.0,0.836]
[1720653280184,2.34005502,3107.4,3107.1,1.12071443]
[1720653280398,2.34005502,3107.4,3106.9,0.67504003]
[1720653280708,2.34005502,3107.4,3107.0,2.80179205]
[1720653281008,2.34005502,3107.4,3106.9,1.51104003]
[1720653281170,2.34005502,3107.4,3107.0,2.80184815]
[1720653281371,2.34005502,3107.4,3106.9,1.51104003]
[1720653281704,0.08485502,3107.4,3107.3,0.836]
[1720653282005,0.08485502,3107.4,3107.3,3.63752629]
[1720653282799,0.08485502,3107.4,3107.3,1.95660321]
[1720653282974,0.08485502,3107.4,3107.3,0.836]
[1720653283375,0.08485502,3107.4,3107.1,0.836]
[1720653283607,0.08485502,3107.4,3107.2,1.12066527]
[1720653283917,0.08485502,3107.4,3107.1,0.836]
[1720653284075,0.08485502,3107.4,3107.2,1.12067715]
[1720653284276,0.08485502,3107.4,3107.1,1.01248191]
[1720653284616,0.08485502,3107.4,3107.2,1.12067538]
[1720653284811,0.08485502,3107.4,3107.1,1.01248191]
[1720653285026,0.08485502,3107.4,3107.2,2.80164687]
[1720653285173,0.08485502,3107.4,3107.1,1.01248191]
[1720653285528,0.08485502,3107.4,3107.2,2.80162987]
[1720653285690,0.08485502,3107.4,3107.3,1.12065195]
[1720653286119,0.08485502,3107.4,3107.1,1.51245911]
[1720653286275,0.08485502,3107.4,3107.2,2.8015771]
[1720653286618,0.08485502,3107.4,3107.3,1.12063084]
[1720653286978,0.08485502,3107.4,3107.1,1.51245911]
[1720653287185,0.08485502,3107.4,3107.2,2.80159746]
[1720653287399,0.08485502,3107.4,3107.1,1.51245911]
[1720653287605,0.08485502,3107.4,3107.2,2.80159693]
[1720653287923,0.08485502,3107.4,3107.3,1.12063877]
[1720653289032,0.08485502,3107.4,3107.3,1.12062359]
[1720653289540,0.08485502,3107.4,3107.3,1.1206329]
[1720653289704,0.08485502,3107.4,3107.1,1.51261678]
[1720653289912,0.08485502,3107.4,3107.2,2.80160113]
[1720653290196,0.08485502,3107.4,3107.3,1.12064045]
[1720653292697,0.08485502,3107.4,3107.3,1.12062753]
[1720653293097,0.42169178,3107.4,3107.3,1.12062753]
[1720653293902,0.42169178,3107.4,3107.3,3.63754343]
[1720653294638,0.42169178,3107.4,3107.3,4.77337525]
[1720653296229,0.42169178,3107.4,3107.3,4.09662665]
[1720653296393,0.42169178,3107.4,3107.3,4.77324343]
[1720653296835,0.42169178,3107.4,3107.3,4.09662665]
[1720653297010,0.42169178,3107.4,3107.3,4.77324343]
[1720653299537,0.42169178,3107.4,3107.3,3.65267879]
[1720653299733,0.42169178,3107.4,3107.3,4.77323038]
[1720653301213,0.42169178,3107.4,3107.3,3.63739856]
[1720653301740,0.42169178,3107.4,3107.3,2.80139856]
[1720653302237,2.88849178,3107.4,3107.3,1.12064503]
[1720653302438,2.88849178,3107.4,3107.0,0.67661678]
[1720653302739,2.88849178,3107.4,3107.1,2.80170076]
[1720653302740,2.80363676,3107.4,3107.1,2.80170076]
[1720653302916,0.02321738,3107.3,3107.2,1.1206803]
[1720653305838,0.02321738,3107.3,3107.2,2.80171481]
[1720653306141,0.0850278,3107.3,3107.2,1.12069597]
[1720653306843,0.0850278,3107.3,3107.2,2.80172199]
[1720653307437,0.0850278,3107.3,3107.2,1.12069597]
[1720653308004,0.02321738,3107.3,3107.2,2.80170749]
[1720653308342,0.33683676,3107.4,3107.2,2.80170749]
[1720653308539,0.33683676,3107.4,3107.3,1.12069597]
[1720653308744,0.33683676,3107.4,3107.3,3.90089359]
[1720653309158,0.33683676,3107.4,3107.3,4.57751037]
[1720653309625,0.39871024,3107.4,3107.3,4.57751037]
[1720653310650,0.33683676,3107.4,3107.3,4.57751037]
[1720653312541,0.33683676,3107.4,3107.3,1.77594805]
[1720653312851,0.33683676,3107.4,3107.3,4.57749862]
[1720653316114,0.33683676,3107.4,3107.3,4.5775432]
[1720653316343,0.33683676,3107.4,3107.3,4.31421248]
[1720653316826,0.42182067,3107.4,3107.3,4.31421248]
[1720653317347,0.42182067,3107.4,3107.3,3.63743961]
[1720653317547,0.42182067,3107.4,3107.3,2.80143961]
[1720653319226,0.42182067,3107.4,3107.0,0.67677287]
[1720653319426,0.42182067,3107.4,3107.1,2.80174723]
[1720653319627,0.42182067,3107.4,3107.2,1.12069119]
[1720653319829,0.42182067,3107.4,3107.0,0.67691005]
[1720653320023,0.42182067,3107.4,3107.1,2.80174748]
[1720653320353,0.42182067,3107.4,3106.9,0.67691005]
[1720653320525,0.42182067,3107.4,3107.0,2.80181135]
[1720653320526,2.83172067,3107.4,3107.0,2.80181135]
[1720653320731,2.83172067,3107.4,3107.1,2.80181135]
[1720653320941,2.83172067,3107.4,3106.9,0.67691005]
[1720653321231,2.83172067,3107.4,3107.0,2.80181663]
[1720653321432,2.83172067,3107.4,3107.1,1.12072665]
[1720653321756,2.83172067,3107.4,3106.9,0.67691005]
[1720653321927,2.83172067,3107.4,3107.0,2.80181913]
[1720653322128,2.83172067,3107.4,3107.1,1.12072765]
[1720653322329,2.83172067,3107.4,3106.9,0.67691005]
[1720653322553,2.83172067,3107.4,3107.0,2.80182151]
[1720653322731,2.83172067,3107.4,3107.1,2.80182106]
[1720653323051,2.83172067,3107.4,3107.0,0.836]
[1720653323253,2.83172067,3107.4,3107.1,2.8017989]
[1720653323447,2.83172067,3107.4,3107.0,0.836]
[1720653323640,2.83172067,3107.4,3107.1,2.80179531]
[1720653323829,2.83172067,3107.4,3107.0,0.836]
[1720653324030,2.83172067,3107.4,3107.1,2.80178203]
[1720653324229,2.83172067,3107.4,3107.0,0.836]
[1720653324456,2.83172067,3107.4,3107.1,2.8017611]
[1720653324751,2.83172067,3107.4,3107.0,0.836]
[1720653324954,2.83172067,3107.4,3107.1,2.8017797]
[1720653325142,2.83172067,3107.4,3107.0,1.51286898]
[1720653325344,2.83172067,3107.4,3107.1,2.80175367]
[1720653325544,2.83172067,3107.4,3107.0,0.836]
[1720653325737,2.83172067,3107.4,3107.1,2.8017726]
[1720653325951,2.83172067,3107.4,3107.0,0.836]
[1720653326123,2.83172067,3107.4,3107.1,2.80177345]
[1720653326316,2.83172067,3107.4,3107.0,0.836]
[1720653326723,2.83172067,3107.4,3107.1,2.80177298]
[1720653326922,2.83172067,3107.4,3107.0,0.836]
[1720653327123,2.83172067,3107.4,3107.1,1.12071293]
[1720653327323,2.83172067,3107.4,3107.0,0.836]
[1720653327523,2.83172067,3107.4,3107.1,1.12072413]
[1720653327723,2.83172067,3107.4,3107.0,0.836]
[1720653327962,2.83172067,3107.4,3107.1,1.12071347]
[1720653328159,2.83172067,3107.4,3107.0,0.836]
[1720653328502,2.83172067,3107.4,3107.1,1.12072396]
[1720653328626,2.83172067,3107.4,3107.0,0.836]
[1720653328824,2.83172067,3107.4,3107.1,2.8017664]
[1720653329019,2.83172067,3107.4,3107.0,0.836]
[1720653329247,2.83172067,3107.4,3107.1,1.12071385]
[1720653329445,2.83172067,3107.4,3107.0,0.836]
[1720653329643,2.83172067,3107.4,3107.1,1.12071596]
[1720653329836,2.83172067,3107.4,3107.0,0.836]
[1720653330218,2.83172067,3107.4,3107.1,2.80174903]
[1720653330418,2.83172067,3107.4,3107.0,0.836]
[1720653330655,2.83172067,3107.4,3107.1,1.12072421]
[1720653330858,2.83172067,3107.4,3107.0,0.836]
[1720653331156,2.83172067,3107.4,3107.1,1.12071454]
[1720653331328,2.83172067,3107.4,3107.0,0.836]
[1720653331529,2.83172067,3107.4,3107.1,1.12071941]
[1720653331855,2.83172067,3107.4,3107.0,0.836]
[1720653332057,2.83172067,3107.4,3107.1,1.12072907]
[1720653332222,2.83172067,3107.4,3107.0,0.836]
[1720653332424,2.83172067,3107.4,3107.1,1.12072861]
[1720653332624,2.83172067,3107.4,3107.0,0.836]
[1720653332861,2.83172067,3107.4,3107.1,1.12072469]
[1720653333037,2.83172067,3107.4,3107.0,0.836]
[1720653333359,2.83172067,3107.4,3107.1,1.1207247]
[1720653333563,2.83172067,3107.4,3107.0,0.836]
[1720653333864,2.83172067,3107.4,3107.1,1.12071571]
[1720653334028,2.83172067,3107.4,3107.0,0.836]
[1720653334228,2.83172067,3107.4,3107.1,1.12072504]
[1720653334428,2.83172067,3107.4,3107.0,0.836]
[1720653334629,2.83172067,3107.4,3107.1,1.12072501]
[1720653334851,2.83172067,3107.4,3107.0,0.836]
[1720653335051,2.83172067,3107.4,3107.1,1.12072427]
[1720653335251,2.83172067,3107.4,3107.0,0.836]
[1720653335456,2.83172067,3107.4,3107.1,1.12071488]
[1720653335756,2.83172067,3107.4,3107.0,0.836]
[1720653335981,2.83172067,3107.4,3107.1,1.12072247]
[1720653336259,2.83172067,3107.4,3107.0,0.836]
[1720653336463,2.83172067,3107.4,3107.1,1.12071968]
[1720653336663,2.83172067,3107.4,3107.0,0.836]
[1720653336838,2.83172067,3107.4,3107.1,1.12071877]
[1720653337169,2.83172067,3107.4,3107.0,0.836]
[1720653337462,2.83172067,3107.4,3107.1,1.1207089]
[1720653337676,2.83172067,3107.4,3107.0,0.836]
[1720653337960,2.83172067,3107.4,3107.1,1.12069927]
[1720653338123,2.83172067,3107.4,3107.0,0.836]
[1720653338461,2.83172067,3107.4,3107.1,1.12070159]
[1720653338761,2.83172067,3107.4,3107.0,0.836]
[1720653338972,2.83172067,3107.4,3107.1,2.80174933]
[1720653339260,2.83172067,3107.4,3107.0,0.836]
[1720653339561,2.83172067,3107.4,3107.1,2.80174625]
[1720653339763,2.83172067,3107.4,3107.0,0.836]
[1720653339965,2.83172067,3107.4,3107.1,2.80174625]
[1720653340173,2.83172067,3107.4,3107.0,0.836]
[1720653340377,2.83172067,3107.4,3107.1,2.80171925]
[1720653340581,2.83172067,3107.4,3107.0,0.836]
[1720653340773,2.83172067,3107.4,3107.1,1.12070532]
[1720653341072,2.83172067,3107.4,3107.0,0.836]
[1720653341255,2.83172067,3107.4,3107.1,1.12070687]
[1720653341465,2.83172067,3107.4,3107.0,0.836]
[1720653341660,2.83172067,3107.4,3107.1,1.12070683]
[1720653341977,2.83172067,3107.4,3107.0,0.836]
[1720653342135,2.83172067,3107.4,3107.1,2.8017241]
[1720653342340,2.83172067,3107.4,3107.0,0.836]
[1720653342541,2.83172067,3107.4,3107.1,2.80173468]
[1720653342741,2.83172067,3107.4,3107.0,0.836]
[1720653342976,2.49488391,3107.4,3107.1,2.80173428]
[1720653343275,2.49488391,3107.4,3107.0,0.836]
[1720653343491,2.49488391,3107.4,3107.1,2.80173428]
[1720653343676,2.49488391,3107.4,3107.0,0.836]
[1720653343875,2.49488391,3107.4,3107.1,2.80173572]
[1720653344056,2.49488391,3107.4,3107.0,0.836]
[1720653344259,2.49488391,3107.4,3107.1,2.80173553]
[1720653344565,2.49488391,3107.4,3107.0,0.836]
[1720653344740,2.49488391,3107.4,3107.1,2.80173543]
[1720653345076,2.49488391,3107.4,3107.0,0.836]
[1720653345273,2.49488391,3107.4,3107.1,2.80171008]
[1720653345474,2.49488391,3107.4,3107.2,1.12068401]
[1720653345639,2.49488391,3107.4,3107.0,0.836]
[1720653345838,2.49488391,3107.4,3107.1,2.8017457]
[1720653346042,2.49488391,3107.4,3107.0,0.836]
[1720653346274,2.49488391,3107.4,3107.1,2.8017457]
[1720653346478,2.49488391,3107.4,3107.0,1.51286898]
[1720653346674,2.49488391,3107.4,3107.1,2.80172655]
[1720653346853,2.49488391,3107.4,3107.0,1.51286898]
[1720653347054,2.49488391,3107.4,3107.1,2.80174513]
[1720653347308,2.49488391,3107.4,3107.0,1.51286898]
[1720653347457,2.49488391,3107.4,3107.1,2.80174523]
[1720653347658,2.49488391,3107.4,3107.0,1.51286898]
[1720653347857,2.49488391,3107.4,3107.1,2.8017454]
[1720653348081,2.49488391,3107.4,3107.0,1.51286898]
[1720653348388,2.49488391,3107.4,3107.1,2.80174531]
[1720653348574,2.49488391,3107.4,3107.0,1.51286898]
[1720653348758,2.49488391,3107.4,3107.1,2.8017459]
[1720653348955,2.49488391,3107.4,3107.0,0.836]
[1720653349160,2.49488391,3107.4,3107.1,2.8017456]
[1720653349360,2.49488391,3107.4,3107.0,0.836]
[1720653349665,2.49488391,3107.4,3107.1,2.80174563]
[1720653350006,2.49488391,3107.4,3107.0,1.51279336]
[1720653350204,2.49488391,3107.4,3107.1,2.80174421]
[1720653350374,2.49488391,3107.4,3107.0,1.51279336]
[1720653350561,2.49488391,3107.4,3107.1,2.8017458]
[1720653350890,2.49488391,3107.4,3107.0,0.836]
[1720653351190,2.49488391,3107.4,3107.1,2.80178166]
[1720653351412,2.49488391,3107.4,3107.0,0.836]
[1720653351604,2.49488391,3107.4,3107.1,1.12072053]
[1720653351894,2.49488391,3107.4,3107.0,0.836]
[1720653352098,2.49488391,3107.4,3107.1,1.12071874]
[1720653352269,2.49488391,3107.4,3106.9,0.67679336]
[1720653352464,2.49488391,3107.4,3107.0,2.8017803]
[1720653352669,2.49488391,3107.4,3107.1,1.12071212]
[1720653352870,2.49488391,3107.4,3106.9,0.67679336]
[1720653353091,2.49488391,3107.4,3107.0,2.80185063]
[1720653353295,2.49488391,3107.4,3107.1,1.12074025]
[1720653353467,2.49488391,3107.4,3106.9,0.67679336]
[1720653353795,2.49488391,3107.4,3107.0,2.80185523]
[1720653354097,2.49488391,3107.4,3107.1,1.12074209]
[1720653354394,2.49488391,3107.4,3106.9,0.67679336]
[1720653354597,2.49488391,3107.4,3107.0,2.80182655]
[1720653354889,2.49488391,3107.4,3106.9,0.67679336]
[1720653355070,2.49488391,3107.4,3107.0,2.80185221]
[1720653355266,2.49488391,3107.4,3107.1,1.1207397]
[1720653355473,2.49488391,3107.4,3106.9,0.67679336]
[1720653355769,2.49488391,3107.4,3107.0,2.80185982]
[1720653355981,2.49488391,3107.4,3107.1,1.12074393]
[1720653356174,2.49488391,3107.4,3106.9,0.67679336]
[1720653356469,2.49488391,3107.4,3107.0,2.80183861]
[1720653356676,2.49488391,3107.4,3107.1,1.12073544]
[1720653356856,2.49488391,3107.4,3106.9,0.67679336]
[1720653357061,2.49488391,3107.4,3107.0,2.80183887]
[1720653357282,2.49488391,3107.4,3107.1,1.12073555]
[1720653357476,2.49488391,3107.4,3106.9,0.67679336]
[1720653357695,2.49488391,3107.4,3107.0,2.80187553]
[1720653357866,2.49488391,3107.4,3107.1,1.12075021]
[1720653358077,2.49488391,3107.4,3106.9,0.67679336]
[1720653358459,2.49488391,3107.4,3107.0,2.8018725]
[1720653358660,2.49488391,3107.4,3107.1,1.120749]
[1720653358965,2.49488391,3107.4,3106.9,0.67679336]
[1720653359165,2.49488391,3107.4,3107.0,2.80188405]
[1720653359464,2.49488391,3107.4,3107.1,1.12075362]
[1720653359668,2.49488391,3107.4,3106.9,0.67679336]
[1720653359981,2.49488391,3107.4,3107.0,2.8018779]
[1720653360189,2.49488391,3107.4,3107.1,1.12075116]
[1720653360382,2.49488391,3107.4,3106.9,0.67679336]
[1720653360583,2.49488391,3107.4,3107.0,2.80185453]
[1720653360789,2.49488391,3107.4,3107.1,1.12074181]
[1720653360988,2.49488391,3107.4,3106.9,0.67679336]
[1720653361165,2.49488391,3107.4,3107.0,2.80192525]
[1720653361372,2.49488391,3107.4,3106.9,0.67679336]
[1720653361572,2.49488391,3107.4,3107.0,2.80196845]
[1720653361795,2.49488391,3107.4,3107.1,1.12078738]
[1720653362008,2.49488391,3107.4,3106.9,0.6771744]
[1720653362165,2.49488391,3107.4,3107.0,2.80191613]
[1720653362369,2.49488391,3107.4,3107.1,1.12076645]
[1720653362696,2.49488391,3107.4,3106.9,0.6771744]
[1720653362888,2.49488391,3107.4,3107.0,2.80192005]
[1720653363088,2.49488391,3107.4,3107.1,1.12076802]
[1720653363300,2.49488391,3107.4,3106.9,0.6771744]
[1720653363517,2.49488391,3107.4,3107.0,2.80192006]
[1720653363679,2.49488391,3107.4,3107.1,1.12076802]
[1720653363878,2.49488391,3107.4,3106.9,0.6771744]
[1720653364075,2.49488391,3107.4,3107.0,2.80198253]
[1720653364423,2.7443723,3107.4,3106.7,0.6771744]
[1720653364603,2.7443723,3107.4,3106.8,1.12090661]
[1720653364797,2.7443723,3107.4,3106.5,0.6771744]
[1720653365110,2.7443723,3107.4,3106.6,3.47957415]
[1720653365402,2.62753723,3107.3,3106.7,1.1209599]
[1720653365602,2.62753723,3107.3,3106.5,0.6771744]
[1720653365899,2.34892559,3107.2,3106.6,2.80234133]
[1720653366098,2.34892559,3107.2,3106.7,1.12093653]
[1720653366304,2.34892559,3107.2,3106.4,1.5131744]
[1720653366503,2.34892559,3107.2,3106.5,2.80241726]
[1720653366504,2.70322187,3107.2,3106.5,2.80241726]
[1720653366701,2.70322187,3107.2,3106.3,0.6771744]
[1720653366901,2.62379628,3107.2,3106.4,2.80249783]
[1720653367207,2.62379628,3107.2,3106.2,1.5131744]
[1720653367392,2.62379628,3107.2,3106.3,2.80252328]
[1720653367393,0.836,3107.1,3106.3,2.80252328]
[1720653367592,0.3368343,3107.9,3106.1,0.6771744]
[1720653367593,0.836,3106.8,3106.1,0.6771744]
[1720653367791,2.2695,3106.5,3105.9,0.6771744]
[1720653368107,2.2695,3106.5,3105.7,0.6771744]
[1720653368274,2.2695,3106.5,3105.8,1.12117948]
[1720653368473,2.2695,3106.5,3105.6,3.8145744]
[1720653368669,0.31055,3106.4,3105.7,2.80295056]
[1720653368979,0.31055,3106.4,3105.8,1.12118022]
[1720653369172,0.31055,3106.4,3105.6,2.9785744]
[1720653369375,0.31055,3106.4,3105.7,1.1211818]
[1720653369573,0.31055,3106.4,3105.6,2.3014]
[1720653369816,0.06019263,3106.3,3105.7,2.80296023]
[1720653369974,0.31055,3106.4,3105.6,2.3014]
[1720653370173,0.31055,3106.4,3105.7,2.80295995]
[1720653370393,0.31055,3106.4,3105.6,2.3014]
[1720653371505,2.4283,3106.3,3105.5,0.836]
[1720653371810,2.4283,3106.3,3105.6,1.12118125]
[1720653371976,2.4283,3106.3,3105.5,1.3209136]
[1720653372177,2.4283,3106.3,3105.6,1.12118118]
[1720653372496,2.4283,3106.3,3105.5,1.3209136]
[1720653372699,2.4283,3106.3,3105.6,1.12118473]
[1720653372892,2.67113,3106.3,3105.4,2.9973744]
[1720653373213,0.07868279,3106.2,3105.5,3.6389484]
[1720653373527,0.07868279,3106.2,3105.5,0.836]
[1720653373716,2.67113,3106.3,3105.5,0.836]